bitfinex-derivatives/quotes_SOLF0:USTF0_20240906
["timestamp","ask_amount","ask_price","bid_price","bid_amount"]
[1725635796237,2.7055,128.44,128.36,44.79]
[1725635796536,2.7055,128.44,128.41,0.05014468]
[1725635797133,44.79,128.49,128.41,0.05014468]
[1725635797334,44.79,128.49,128.42,3.89741439]
[1725635797928,48.8066,128.51,128.4,44.79]
[1725635798133,4.0166,128.51,128.42,44.79]
[1725635798334,4.0166,128.51,128.44,0.05413574]
[1725635798740,3.8931,128.49,128.45,3.8941]
[1725635799040,4.0166,128.51,128.44,0.05413574]
[1725635799240,3.8932,128.49,128.45,3.8942]
[1725635799443,4.0166,128.51,128.45,3.830459]
[1725635799633,48.8066,128.51,128.4,46.0645]
[1725635799837,3.8934,128.48,128.4,46.0645]
[1725635800039,48.8066,128.51,128.46,0.05257105]
[1725635800243,4.0166,128.51,128.46,0.05257105]
[1725635800546,235.7811,128.58,128.46,0.05257105]
[1725635800547,44.79,128.57,128.46,0.05257105]
[1725635800739,52.81351742,128.57,128.45,3.86161994]
[1725635800939,52.81351742,128.57,128.44,44.79]
[1725635801141,52.81351742,128.57,128.47,0.05531985]
[1725635801339,44.79,128.55,128.47,0.05531985]
[1725635801551,44.79,128.53,128.47,0.05531985]
[1725635801844,3.8931,128.49,128.45,7.81553084]
[1725635802349,3.8925,128.51,128.49,0.05045554]
[1725635802845,44.79,128.53,128.49,0.05045554]
[1725635802846,3.8928,128.5,128.49,0.05045554]
[1725635803143,3.8928,128.5,128.47,3.80725717]
[1725635803342,3.8926,128.51,128.46,3.8937]
[1725635803542,44.79,128.53,128.48,0.05121447]
[1725635803741,44.79,128.55,128.48,0.05121447]
[1725635804052,3.8924,128.52,128.48,3.94441447]
[1725635804237,44.79,128.55,128.42,48.74014125]
[1725635804439,44.79,128.55,128.43,1.3156]
[1725635804741,3.8923,128.52,128.49,0.0493673]
[1725635805155,3.8923,128.52,128.49,3.9423673]
[1725635805351,44.79,128.55,128.49,0.0493673]
[1725635805552,48.8701,128.57,128.49,0.0493673]
[1725635805750,4.0801,128.57,128.49,0.0493673]
[1725635805949,1.3941,128.57,128.51,37.38]
[1725635806153,41.21900112,128.61,128.55,3.891]
[1725635806455,41.21900112,128.61,128.51,37.38]
[1725635806754,4.0568,128.62,128.48,2.7251]
[1725635806755,4.0568,128.62,128.53,37.38]
[1725635806951,4.0568,128.62,128.55,37.38]
[1725635807145,41.36346501,128.67,128.57,37.38]
[1725635807350,37.38,128.65,128.55,41.2240632]
[1725635807546,3.8891,128.62,128.56,0.05471558]
[1725635807746,3.8891,128.62,128.56,3.92475975]
[1725635807958,48.75128668,128.66,128.58,3.8903]
[1725635808264,44.82,128.66,128.56,3.87004417]
[1725635808465,44.82,128.66,128.52,44.82]
[1725635808466,44.82,128.64,128.52,44.82]
[1725635808660,44.82,128.64,128.61,0.04998619]
[1725635808861,44.82,128.64,128.5,1.2753]
[1725635808862,44.82,128.61,128.5,46.0953]
[1725635809662,3.8911,128.56,128.5,1.2753]
[1725635810167,3.92022365,128.59,128.48,6.59836749]
[1725635810168,3.8919,128.53,128.48,6.59836749]
[1725635810352,44.82,128.57,128.48,5.20706749]
[1725635810353,0.05827966,128.54,128.48,5.20706749]
[1725635810754,0.05827966,128.54,128.48,3.87326749]
[1725635810959,0.05827966,128.54,128.44,44.82]
[1725635810960,0.05827966,128.54,128.44,46.168]
[1725635811468,0.05827966,128.54,128.44,5.16615841]
[1725635811654,44.82,128.53,128.44,5.16615841]
[1725635812063,44.82,128.53,128.46,3.894]
[1725635812260,0.04926993,128.5,128.46,3.894]
[1725635812573,0.04926993,128.5,128.47,3.8936]
[1725635813063,0.04926993,128.5,128.44,5.16615841]
[1725635814264,0.04926993,128.5,128.44,3.81815841]
[1725635814469,0.04926993,128.5,128.41,1.2843]
[1725635814865,3.8932,128.49,128.41,1.2843]
[1725635815171,2.5989,128.52,128.42,44.82]
[1725635815462,2.5989,128.52,128.44,44.82]
[1725635815463,6.4911,128.52,128.44,44.82]
[1725635815665,0.0586185,128.46,128.44,44.82]
[1725635815869,3.8919,128.53,128.49,3.893]
[1725635816067,2.6565,128.56,128.49,3.94102144]
[1725635816375,1.3061,128.58,128.48,44.82]
[1725635816662,1.3061,128.58,128.5,44.82]
[1725635816856,1.3061,128.58,128.54,3.8913]
[1725635817062,1.3061,128.58,128.54,7.8011702]
[1725635817567,1.3061,128.58,128.54,3.9098702]
[1725635817767,1.3061,128.58,128.53,0.0536891]
[1725635817967,1.3061,128.58,128.53,3.85955841]
[1725635818164,5.1965,128.58,128.54,3.8914]
[1725635818662,2.7041,128.62,128.53,48.67955841]
[1725635819372,2.7041,128.62,128.53,3.80586931]
[1725635819567,2.7041,128.62,128.5,44.82]
[1725635819965,2.7041,128.62,128.56,0.05145156]
[1725635820170,44.82,128.61,128.56,0.05145156]
[1725635820360,3.8906,128.57,128.56,0.05145156]
[1725635820561,44.82,128.59,128.48,44.82]
[1725635820868,2.7041,128.62,128.49,3.8928]
[1725635820869,3.892,128.53,128.49,3.8928]
[1725635821059,44.82,128.56,128.47,1.3701]
[1725635821465,48.70663852,128.56,128.5,3.8925]
[1725635821773,44.82,128.56,128.47,1.3701]
[1725635821968,44.82,128.58,128.47,1.3701]
[1725635822172,0.05506674,128.54,128.48,44.82]
[1725635822366,0.05506674,128.54,128.47,1.3701]
[1725635822760,44.87506674,128.54,128.46,3.96360609]
[1725635822968,44.87506674,128.54,128.44,44.82]
[1725635823273,44.87506674,128.54,128.44,3.94385221]
[1725635823468,1.2774,128.53,128.42,46.1759]
[1725635823774,44.82,128.52,128.42,3.80140181]
[1725635823971,1.2774,128.53,128.33,3.79694695]
[1725635823972,44.82,128.48,128.38,44.82]
[1725635824169,44.82,128.48,128.36,44.82]
[1725635824375,3.95448695,128.47,128.36,44.82]
[1725635824675,1.3149,128.47,128.36,44.82]
[1725635824978,3.8945,128.45,128.39,3.896]
[1725635825269,1.3149,128.47,128.38,44.82]
[1725635825570,0.0507595,128.43,128.42,3.895]
[1725635825777,0.0507595,128.43,128.42,7.84403464]
[1725635826171,0.0507595,128.43,128.42,3.94903464]
[1725635826374,0.0507595,128.43,128.35,4.15]
[1725635826375,1.3149,128.47,128.37,44.82]
[1725635826674,46.1349,128.47,128.37,44.82]
[1725635826873,46.1349,128.47,128.35,46.1759]
[1725635826874,44.82,128.45,128.35,46.1759]
[1725635827080,44.82,128.4,128.28,2.7314]
[1725635827280,1.382,128.44,128.28,1.4037]
[1725635827474,1.382,128.44,128.3,44.82]
[1725635827475,44.82,128.4,128.3,44.82]
[1725635827982,44.82,128.41,128.3,44.82]
[1725635828167,1.42835394,128.43,128.28,1.4037]
[1725635828478,44.82,128.39,128.28,1.4037]
[1725635828779,3.8967,128.38,128.28,1.4037]
[1725635828973,44.82,128.4,128.29,44.82]
[1725635829169,48.70390436,128.4,128.29,44.82]
[1725635829374,0.05091151,128.35,128.27,44.82]
[1725635830283,44.82,128.38,128.27,44.82]
[1725635830472,1.3147,128.39,128.27,44.82]
[1725635830669,1.3147,128.39,128.24,3.92527812]
[1725635830670,44.82,128.36,128.24,3.92527812]
[1725635830976,1.3147,128.39,128.17,1.284]
[1725635830977,44.87476812,128.32,128.2,44.82]
[1725635831173,1.3464,128.31,128.2,44.82]
[1725635831374,1.3464,128.31,128.23,3.9009]
[1725635831569,44.82,128.3,128.18,44.82]
[1725635831881,44.82,128.25,128.19,3.82507423]
[1725635832179,44.82,128.25,128.11,1.286]
[1725635832479,0.05166316,128.28,128.14,3.91252279]
[1725635832480,3.9016,128.21,128.14,3.91252279]
[1725635832776,48.79127776,128.21,128.14,0.02]
[1725635832973,4.0263,128.2,128.14,0.02]
[1725635834273,0.05042036,128.18,128.14,0.02]
[1725635834475,0.05042036,128.18,127.9,7.8221]
[1725635834476,44.82,128.17,127.9,7.8221]
[1725635834677,44.82,128.17,128.08,3.90549477]
[1725635834678,3.9045,128.12,128.08,3.90549477]
[1725635834982,44.82,128.17,128.08,3.90549477]
[1725635835184,44.82,128.14,127.96,1.286]
[1725635835488,4.0263,128.2,127.96,1.286]
[1725635835489,44.82,128.1,127.96,1.286]
[1725635835674,3.9055,128.09,127.96,1.286]
[1725635835880,44.82,128.06,127.93,44.82]
[1725635836184,3.91017902,128.09,127.82,7.8264]
[1725635836185,44.82,128.09,127.82,7.8264]
[1725635836375,44.82,128.09,127.55,10.68405002]
[1725635836376,44.82,127.97,127.85,44.82]
[1725635836583,105.7599387,128.13,127.87,44.82]
[1725635836584,44.82,127.98,127.87,44.82]
[1725635836779,44.82,127.98,127.85,3.8949552]
[1725635836780,109.61273564,128.13,127.94,44.82]
[1725635837082,109.61273564,128.13,127.85,3.8949552]
[1725635837083,0.04963746,127.97,127.9,44.82]
[1725635837278,0.04963746,127.97,127.65,7.8372]
[1725635837472,0.04963746,127.97,127.83,44.82]
[1725635837677,0.04963746,127.97,127.83,48.7278125]
[1725635837678,44.82,127.95,127.83,48.7278125]
[1725635837883,44.82,127.95,127.83,3.9078125]
[1725635838084,3.91211109,127.97,127.83,44.82]
[1725635838288,44.82,127.95,127.81,3.82965624]
[1725635838582,44.82,127.95,127.84,44.82]
[1725635838787,44.82,128.0,127.87,44.82]
[1725635838973,44.82,128.02,127.89,44.82]
[1725635839176,4.00042765,128.03,127.9,3.81793281]
[1725635839177,44.82,128.0,127.9,3.81793281]
[1725635839378,44.82,127.98,127.91,3.9107]
[1725635839578,44.82,128.09,127.89,3.83043781]
[1725635839579,44.82,128.02,127.9,44.8]
[1725635839782,44.82,128.04,127.91,44.82]
[1725635840173,44.82,128.06,127.94,44.82]
[1725635840380,44.82,128.08,127.96,44.82]
[1725635840679,44.82,128.1,127.98,44.82]
[1725635840879,46.1295,128.12,128.0,44.82]
[1725635841281,44.82,128.17,128.04,44.82]
[1725635841685,44.82,128.17,128.07,44.82]
[1725635841887,44.82,128.19,128.07,44.82]
[1725635842184,1.3095,128.2,128.04,48.73319837]
[1725635842185,44.82,128.15,128.04,48.73319837]
[1725635842486,44.82,128.15,128.04,3.91319837]
[1725635842781,44.82,128.19,128.07,44.82]
[1725635843182,44.82,128.19,128.04,4.00152183]
[1725635843183,1.3095,128.2,128.12,3.9043]
[1725635843483,1.3095,128.2,128.09,44.82]
[1725635843689,1.3095,128.2,128.14,3.9034]
[1725635843890,1.3095,128.2,128.11,44.82]
[1725635843891,157.64807729,128.24,128.11,44.82]
[1725635844104,157.64807729,128.24,128.09,48.64147646]
[1725635844105,44.82,128.23,128.09,48.64147646]
[1725635844384,44.82,128.23,128.12,44.82]
[1725635844581,1.2746,128.27,128.12,44.82]
[1725635844582,44.82,128.26,128.12,44.82]
[1725635844788,44.82,128.23,128.12,44.82]
[1725635844987,44.82,128.26,128.14,44.82]
[1725635845180,48.63405915,128.26,128.14,44.82]
[1725635845393,44.82,128.23,128.11,44.82]
[1725635845686,48.63405915,128.26,128.14,44.82]
[1725635845882,44.82,128.24,128.14,44.82]
[1725635846593,3.81405915,128.26,128.03,4.1074]
[1725635846594,44.82,128.17,128.03,4.1074]
[1725635846783,44.82,128.17,128.05,44.82]
[1725635846985,44.82,128.17,127.98,44.82]
[1725635846986,44.82,128.11,127.98,44.82]
[1725635847381,44.82,128.11,128.0,44.82]
[1725635847586,44.82,128.11,127.98,3.93949004]
[1725635847587,1.3973,128.16,128.05,44.82]
[1725635847790,1.3973,128.16,128.07,44.82]
[1725635847791,0.04924894,128.12,128.07,44.82]
[1725635848186,0.04924894,128.12,128.05,44.82]
[1725635848385,0.04924894,128.12,127.97,1.3047]
[1725635848386,0.04924894,128.12,128.11,3.9046]
[1725635848588,44.82,128.18,128.05,3.93870878]
[1725635848886,44.82,128.18,128.07,0.05049774]
[1725635849093,44.82,128.18,128.08,3.9054]
[1725635849288,44.82,128.18,128.07,0.05049774]
[1725635849289,44.82,128.16,128.07,0.05049774]
[1725635849590,3.9036,128.15,128.06,3.95081827]
[1725635849788,3.9036,128.15,128.05,44.82]
[1725635849789,44.82,128.18,128.05,44.82]
[1725635850093,48.79074033,128.2,128.1,0.05393229]
[1725635850393,44.82,128.17,128.1,0.05393229]
[1725635850594,44.82,128.11,127.97,226.3047]
[1725635850791,44.82,128.09,127.98,44.82]
[1725635850985,0.05662977,128.13,128.0,44.82]
[1725635850986,44.87662977,128.13,128.0,44.82]
[1725635851290,44.87662977,128.13,128.02,44.82]
[1725635851493,44.87662977,128.13,128.0,3.98965329]
[1725635851494,3.9053,128.09,128.03,3.907]
[1725635851683,44.82,128.09,128.01,195.20262]
[1725635851990,48.7259,128.07,128.01,199.11012]
[1725635852296,44.87672669,128.07,128.01,195.20262]
[1725635852592,3.9073,128.02,128.01,18.99962]
[1725635852790,48.78739962,128.03,127.87,46.1278]
[1725635852991,44.82,128.01,127.89,44.82]
[1725635853194,3.96739962,128.03,127.88,1.3793]
[1725635853195,44.82,127.97,127.88,1.3793]
[1725635853599,3.91781689,128.01,127.88,1.3793]
[1725635853600,44.82,127.95,127.88,1.3793]
[1725635853789,3.91781689,128.01,127.88,46.1993]
[1725635853987,11.71177152,128.13,127.88,1.3793]
[1725635854188,44.82,127.96,127.88,1.3793]
[1725635854396,44.82,127.93,127.62,7.8392]
[1725635854590,0.04925757,127.94,127.8,4.1131]
[1725635854895,0.04925757,127.94,127.8,8.0799742]
[1725635855098,0.04925757,127.94,127.92,44.82]
[1725635855296,44.82,128.04,127.93,3.84330044]
[1725635855593,44.82,128.06,127.94,44.82]
[1725635855794,44.82,128.11,127.99,44.82]
[1725635855996,44.82,128.15,127.96,44.82]
[1725635855997,44.82,128.09,127.96,44.82]
[1725635856600,44.82,128.14,128.03,44.82]
[1725635856893,44.82,128.12,127.99,44.82]
[1725635857096,44.82,128.07,127.96,44.82]
[1725635857402,44.82,128.07,128.01,0.05139421]
[1725635857593,3.9062,128.06,128.01,0.05139421]
[1725635857897,44.82,128.03,128.01,0.05139421]
[1725635858104,48.7271,128.03,128.01,0.05139421]
[1725635858297,44.82,128.05,128.01,0.05139421]
[1725635858506,44.82,128.07,128.01,0.05139421]
[1725635858698,44.82,128.05,127.96,3.95324394]
[1725635858906,44.82,128.07,127.95,44.82]
[1725635859203,44.82,128.07,128.03,0.05567274]
[1725635859394,44.82,128.09,128.03,0.05567274]
[1725635860001,44.82,128.12,127.99,44.82]
[1725635860201,48.68145338,128.14,128.02,44.82]
[1725635860503,48.68145338,128.14,128.05,0.05788673]
[1725635860504,44.82,128.14,128.05,0.05788673]
[1725635860704,44.82,128.16,128.05,0.05788673]
[1725635860901,44.82,128.14,128.05,2.72978673]
[1725635861103,44.82,128.1,128.05,0.05788673]
[1725635861313,44.82,128.14,127.97,2.6719]
[1725635861314,44.82,128.06,127.97,2.6719]
[1725635861697,44.82,128.06,127.97,6.63240265]
[1725635861900,44.82,128.09,127.97,51.45240265]
[1725635862106,44.82,128.09,127.99,44.82]
[1725635862403,44.82,128.03,128.0,0.05703429]
[1725635862611,44.82,128.01,128.0,0.05703429]
[1725635863000,44.82,128.01,127.91,2.6861]
[1725635863198,44.82,128.0,127.91,2.6861]
[1725635863403,44.82,128.09,127.91,2.6861]
[1725635863404,0.05888632,128.02,127.92,44.82]
[1725635863611,0.05888632,128.02,127.97,44.82]
[1725635863803,44.82,127.99,127.64,3.56135]
[1725635864106,44.82,128.01,127.83,1.3549]
[1725635864107,44.82,127.95,127.83,1.3549]
[1725635864297,44.82,127.95,127.84,44.82]
[1725635864498,48.7296,127.95,127.84,48.70627198]
[1725635864708,0.05192163,127.91,127.84,48.70627198]
[1725635865105,0.05192163,127.91,127.84,3.88627198]
[1725635865304,0.05192163,127.91,127.83,1.3549]
[1725635865609,0.05192163,127.91,127.83,5.2306157]
[1725635865798,0.05192163,127.91,127.83,46.1749]
[1725635866002,44.82,127.97,127.83,50.08971301]
[1725635866200,44.82,128.01,127.88,44.82]
[1725635866505,3.9082,128.0,127.88,44.82]
[1725635866705,3.9082,128.0,127.83,50.08971301]
[1725635866706,44.82,127.95,127.83,5.26971301]
[1725635867020,44.82,127.93,127.83,5.26971301]
[1725635867216,44.82,127.93,127.84,3.9128]
[1725635867507,44.82,127.95,127.83,1.3549]
[1725635867508,44.82,127.9,127.83,1.3549]
[1725635867707,44.82,127.9,127.84,3.9126]
[1725635867900,44.82,127.9,127.82,1.3922]
[1725635867901,44.82,127.87,127.82,1.3922]
[1725635868098,44.82,127.89,127.82,1.3922]
[1725635868299,52.6343,128.03,127.82,50.18565275]
[1725635868300,44.82,127.94,127.82,50.18565275]
[1725635868507,52.6343,128.03,127.84,44.82]
[1725635868508,44.82,127.96,127.84,44.82]
[1725635868709,44.82,127.96,127.82,1.3922]
[1725635868710,48.7286,127.98,127.86,44.82]
[1725635868901,44.82,127.98,127.87,1.3838]
[1725635869308,44.82,127.98,127.89,44.87155784]
[1725635869514,0.05618836,127.93,127.91,44.82]
[1725635869704,3.9074,128.02,127.95,3.9094]
[1725635869905,44.82,128.03,127.92,1.3595]
[1725635870204,44.82,128.01,127.92,1.3595]
[1725635870601,44.82,128.03,127.93,44.82]
[1725635870803,48.7271,128.03,127.93,44.82]
[1725635871005,44.82,128.03,127.93,44.82]
[1725635871200,44.82,128.03,127.95,0.05744076]
[1725635871407,44.82,128.05,127.95,0.05744076]
[1725635871602,44.82,128.07,127.95,44.87744076]
[1725635871906,44.82,128.02,127.92,1.3595]
[1725635872309,48.7274,128.02,127.95,3.9095]
[1725635872515,48.7274,128.02,128.0,0.05356582]
[1725635872808,44.82,128.02,128.0,0.05356582]
[1725635873198,44.82,128.09,127.96,3.92453191]
[1725635873199,44.82,128.04,127.96,3.92453191]
[1725635873403,44.82,128.04,127.93,44.82]
[1725635873609,44.82,128.15,127.95,44.82]
[1725635873610,44.82,128.08,127.95,44.82]
[1725635873809,44.82,128.08,127.92,1.3595]
[1725635873810,44.82,128.08,127.97,44.82]
[1725635874011,44.82,128.05,127.96,5.35555689]
[1725635874413,44.82,128.05,127.96,3.97025689]
[1725635874602,44.82,128.05,127.93,46.1206]
[1725635875013,44.82,128.03,127.99,0.0587416]
[1725635875202,44.82,128.01,127.99,0.0587416]
[1725635875604,3.908,128.0,127.99,0.0587416]
[1725635875801,44.82,128.01,127.93,1.3006]
[1725635876009,44.82,128.09,127.9,1.3393]
[1725635876010,44.82,127.97,127.9,1.3393]
[1725635876214,44.82,127.97,127.82,3.89604783]
[1725635876215,44.82,127.92,127.86,1.2803]
[1725635876410,44.82,127.88,127.76,2.5615]
[1725635876622,104.09908158,127.94,127.53,19.7212595]
[1725635876623,44.82,127.83,127.72,44.82]
[1725635876811,44.82,127.85,127.72,44.82]
[1725635877118,44.82,127.9,127.73,6.44820768]
[1725635877119,48.7332,127.83,127.73,6.44820768]
[1725635877314,48.7332,127.83,127.64,1.3006]
[1725635877315,44.82,127.79,127.64,1.3006]
[1725635877623,3.89335564,127.87,127.71,3.9168]
[1725635877624,44.82,127.81,127.71,3.9168]
[1725635877810,44.82,127.81,127.65,4.10888904]
[1725635877811,89.64,127.77,127.65,2.82858904]
[1725635878017,89.64,127.77,127.44,19.40793845]
[1725635878018,89.64,127.77,127.57,44.82]
[1725635878316,7.766,127.93,127.55,4.0344]
[1725635878620,104.09908158,127.94,127.58,1.43898034]
[1725635878621,44.82,127.73,127.58,1.43898034]
[1725635878812,44.82,127.69,127.58,2.87822022]
[1725635879015,44.82,127.67,127.58,2.87822022]
[1725635879226,3.99229286,127.85,127.58,2.87822022]
[1725635879227,44.82,127.83,127.58,5.35958034]
[1725635879414,28.49080007,128.14,127.66,0.05857037]
[1725635879415,3.99503025,127.84,127.66,0.05857037]
[1725635879614,28.49080007,128.14,127.66,0.05857037]
[1725635879808,142.49080007,128.17,127.66,0.05857037]
[1725635880018,28.49080007,128.15,127.66,0.05857037]
[1725635880226,3.913,127.84,127.62,3.90167755]
[1725635880414,7.8081,128.13,127.74,44.82]
[1725635880415,104.09908158,127.94,127.74,44.82]
[1725635880726,104.09908158,127.94,127.75,44.82]
[1725635880727,3.9122,127.87,127.75,44.82]
[1725635880911,0.77916485,127.93,127.63,44.82]
[1725635880912,48.66172408,127.88,127.73,3.92910724]
[1725635881116,104.09908158,127.94,127.7,4.0752]
[1725635881117,44.82,127.85,127.79,0.05582924]
[1725635881511,48.76282209,127.9,127.79,0.05582924]
[1725635881512,44.82,127.83,127.79,0.05582924]
[1725635881723,44.82,127.85,127.79,0.05582924]
[1725635881917,48.76282209,127.9,127.79,0.05582924]
[1725635881918,44.82,127.87,127.79,0.05582924]
[1725635882121,104.09908158,127.94,127.75,44.82]
[1725635882320,44.82,127.88,127.75,44.82]
[1725635882718,44.82,127.96,127.81,0.05380098]
[1725635882719,44.82,127.93,127.81,0.05380098]
[1725635883012,44.82,127.96,127.81,0.05380098]
[1725635883013,44.82,127.92,127.84,3.9128]
[1725635883219,44.82,127.92,127.81,0.05380098]
[1725635883436,44.82,127.9,127.81,0.05380098]
[1725635883628,44.82,127.82,127.7,7.9690405]
[1725635884027,44.82,127.8,127.7,7.9690405]
[1725635884219,44.82,127.75,127.7,2.6991]
[1725635884734,3.97586461,127.94,127.7,2.6991]
[1725635885029,44.82,127.84,127.74,0.05921445]
[1725635885331,109.61449457,127.95,127.75,44.82]
[1725635885332,44.82,127.88,127.75,44.82]
[1725635885533,44.82,127.84,127.74,0.05921445]
[1725635885830,44.82,127.86,127.7,2.6991]
[1725635886033,44.82,127.9,127.78,44.82]
[1725635886231,44.82,127.84,127.7,2.6991]
[1725635886541,44.82,127.9,127.7,2.6991]
[1725635886542,44.82,127.86,127.74,44.82]
[1725635886752,44.82,127.9,127.7,2.6991]
[1725635886753,44.82,127.9,127.79,44.82]
[1725635886937,44.82,127.92,127.81,44.82]
[1725635887236,3.89683247,128.07,127.85,44.82]
[1725635887437,7.8008,128.25,127.87,44.82]
[1725635887438,44.82,128.0,127.87,44.82]
[1725635887635,44.82,128.0,127.89,44.82]
[1725635887839,44.82,128.0,127.89,48.82833142]
[1725635888033,44.82,127.98,127.87,44.82]
[1725635888227,44.82,127.98,127.87,48.78489022]
[1725635888637,44.82,127.92,127.83,2.6715]
[1725635888837,44.82,127.85,127.77,1.2874]
[1725635889030,44.82,127.87,127.77,1.2874]
[1725635889232,44.82,127.85,127.71,2.6715]
[1725635889429,44.82,127.85,127.72,46.1899]
[1725635889736,44.82,127.85,127.74,44.82]
[1725635889936,44.82,127.83,127.72,46.1899]
[1725635890338,3.85148521,127.88,127.72,1.3699]
[1725635890339,44.82,127.81,127.72,1.3699]
[1725635890530,102.69240701,127.94,127.72,1.3699]
[1725635890531,102.69240701,127.94,127.74,44.82]
[1725635890838,44.82,127.87,127.74,44.82]
[1725635891041,44.82,127.89,127.76,44.82]
[1725635891231,3.9125,127.86,127.77,3.9147]
[1725635891433,44.82,127.9,127.76,44.82]
[1725635891954,123.77123084,128.21,127.85,44.82]
[1725635891955,44.82,128.09,127.85,44.82]
[1725635892242,44.82,128.09,127.86,3.98923392]
[1725635892243,44.82,127.95,127.86,3.98923392]
[1725635892742,44.82,127.98,127.9,3.9109]
[1725635892940,44.82,127.93,127.77,1.0]
[1725635893129,44.82,127.95,127.83,44.82]
[1725635893332,44.82,127.93,127.83,48.64140129]
[1725635893637,44.82,128.03,127.83,48.64140129]
[1725635893638,44.82,127.96,127.83,48.64140129]
[1725635893845,3.9095,127.95,127.86,3.9119]
[1725635894037,44.82,128.03,127.84,1.3601]
[1725635894038,44.82,127.94,127.84,2.6898]
[1725635894233,44.82,128.03,127.77,1.0]
[1725635894234,44.82,127.89,127.77,1.0]
[1725635894443,3.8346972,127.96,127.88,0.05289008]
[1725635894750,44.82,127.9,127.88,0.05289008]
[1725635894937,44.82,127.96,127.88,0.05289008]
[1725635894938,44.82,127.91,127.88,0.05289008]
[1725635895131,44.82,127.89,127.76,3.94970943]
[1725635895436,44.82,127.89,127.69,3.81740908]
[1725635895437,44.82,127.87,127.79,3.9141]
[1725635895745,44.82,127.81,127.69,3.81740908]
[1725635895935,44.82,127.81,127.74,3.9159]
[1725635896139,44.82,127.9,127.69,48.63740908]
[1725635896140,44.82,127.83,127.71,46.181]
[1725635896340,44.82,127.85,127.73,44.82]
[1725635896635,44.82,127.85,127.71,1.361]
[1725635896636,44.82,127.9,127.82,0.05188538]
[1725635897244,146.26669816,127.92,127.82,0.05188538]
[1725635897448,146.26669816,127.92,127.8,48.6475221]
[1725635897736,101.44669816,127.92,127.83,44.82]
[1725635897937,44.82,127.96,127.83,44.82]
[1725635898143,3.9098,127.94,127.86,3.96290799]
[1725635898342,44.82,128.09,127.86,3.96290799]
[1725635898343,44.82,128.01,127.88,44.82]
[1725635898733,44.82,128.01,127.88,48.80602378]
[1725635898937,44.82,127.98,127.88,48.80602378]
[1725635899142,3.9104,127.92,127.84,6.646]
[1725635899448,44.82,128.03,127.84,6.646]
[1725635899449,44.82,127.96,127.93,0.05621575]
[1725635900241,44.82,127.96,127.77,1.3534]
[1725635900242,44.82,127.94,127.77,1.3534]
[1725635900452,44.82,127.9,127.78,2.7691]
[1725635900637,44.82,127.95,127.93,0.05167921]
[1725635900845,44.82,127.97,127.93,0.05167921]
[1725635901438,44.82,127.97,127.85,44.82]
[1725635901644,44.82,127.95,127.85,44.82]
[1725635901842,44.82,127.95,127.78,3.7691]
[1725635901843,44.82,127.95,127.94,0.0545679]
[1725635902147,44.82,127.97,127.87,44.82]
[1725635902443,44.82,128.03,127.87,44.82]
[1725635902444,44.82,127.99,127.87,44.82]
[1725635902748,44.82,128.02,127.89,44.82]
[1725635903057,44.82,127.97,127.88,1.397]